bitfinex/quotes_BTCUSD_20250618
["timestamp","ask_amount","ask_price","bid_price","bid_amount"]
[1750267032080,0.38152481,104420.0,104410.0,0.54866331]
[1750267032293,0.39110096,104420.0,104410.0,0.54866331]
[1750267032520,0.60178809,104420.0,104410.0,0.54866331]
[1750267032736,0.41025391,104420.0,104410.0,0.54866331]
[1750267032955,0.4006773,104420.0,104410.0,0.54866331]
[1750267033182,0.41025382,104420.0,104410.0,0.54866331]
[1750267034048,0.61136461,104420.0,104410.0,0.15824176]
[1750267034282,0.61453624,104420.0,104410.0,0.29972176]
[1750267034529,0.61453624,104420.0,104410.0,0.49127429]
[1750267034734,0.58263624,104420.0,104410.0,0.25680176]
[1750267034968,0.19155253,104410.0,104400.0,0.19157041]
[1750267035183,0.57307908,104410.0,104400.0,0.50087071]
[1750267035400,0.58265643,104410.0,104400.0,0.50087071]
[1750267035637,0.5922335,104410.0,104400.0,0.51044888]
[1750267035883,0.40067996,104410.0,104400.0,0.59120504]
[1750267036124,0.39110271,104410.0,104400.0,0.59320504]
[1750267036386,0.40067987,104410.0,104400.0,0.59320504]
[1750267037073,0.39110271,104410.0,104400.0,0.59420504]
[1750267037346,0.40067987,104410.0,104400.0,0.59420504]
[1750267037611,0.41025722,104410.0,104400.0,0.59420504]
[1750267037908,0.41025713,104410.0,104400.0,0.59420504]
[1750267038200,0.41983466,104410.0,104400.0,0.59420504]
[1750267038890,0.61138719,104410.0,104400.0,0.59420504]
[1750267039548,0.41983466,104410.0,104400.0,0.59420504]
[1750267039766,0.60181039,104410.0,104400.0,0.38114714]
[1750267039977,0.59223341,104410.0,104400.0,0.58458714]
[1750267040441,0.58265634,104410.0,104400.0,0.29081264]
[1750267040659,0.58265634,104410.0,104400.0,0.50383109]
[1750267040886,0.58265634,104410.0,104400.0,0.51340945]
[1750267041129,0.57307899,104410.0,104400.0,0.09924176]
[1750267041345,0.57307899,104410.0,104400.0,0.25976176]
[1750267041564,0.57307899,104410.0,104400.0,0.45133264]
[1750267041772,0.20113006,104410.0,104400.0,0.46091109]
[1750267041986,0.57307899,104410.0,104400.0,0.45133264]
[1750267042242,0.57307899,104410.0,104400.0,0.25976176]
[1750267042908,0.57307899,104410.0,104400.0,0.45133264]
[1750267043116,0.57307899,104410.0,104400.0,0.46091118]
[1750267043337,0.57307899,104410.0,104400.0,0.48006761]
[1750267043764,0.57307899,104410.0,104400.0,0.31954761]
[1750267044001,0.57307899,104410.0,104400.0,0.48006761]
[1750267044429,0.57307899,104410.0,104400.0,0.31954761]
[1750267044638,0.57307899,104410.0,104400.0,0.48006761]
[1750267045260,0.58265624,104410.0,104400.0,0.35982551]
[1750267045482,0.19153609,104420.0,104400.0,0.55274551]
[1750267045693,0.21068922,104420.0,104410.0,0.0324]
[1750267045918,0.01915451,104410.0,104400.0,0.53358871]
[1750267046146,0.39110344,104410.0,104400.0,0.53358871]
[1750267046801,0.39110289,104410.0,104400.0,0.53258871]
[1750267047018,0.41025749,104410.0,104400.0,0.53258871]
[1750267047240,0.40068005,104410.0,104400.0,0.53258871]
[1750267047698,0.21327526,104410.0,104400.0,0.53258871]
[1750267047913,0.21327526,104410.0,104400.0,0.53058871]
[1750267048133,0.21327526,104410.0,104400.0,0.53158871]
[1750267048362,0.21327517,104410.0,104400.0,0.53158871]
[1750267048580,0.22285252,104410.0,104400.0,0.53158871]
[1750267048801,0.22285252,104410.0,104400.0,0.53358871]
[1750267049017,0.21327517,104410.0,104400.0,0.53358871]
[1750267049682,0.22285242,104410.0,104400.0,0.53358871]
[1750267050594,0.21327517,104410.0,104400.0,0.53358871]
[1750267051034,0.21327517,104410.0,104400.0,0.53354935]
[1750267051035,0.42398294,104410.0,104400.0,0.53354935]
[1750267051266,0.42398349,104410.0,104400.0,0.37306935]
[1750267051484,0.49408537,104410.0,104400.0,0.003]
[1750267051705,0.21074768,104390.0,104370.0,0.22352594]
[1750267051951,0.58271698,104380.0,104370.0,0.09634176]
[1750267052189,0.58271698,104380.0,104370.0,0.0001]
[1750267052648,0.58271698,104380.0,104370.0,0.16058]
[1750267052878,0.58271698,104380.0,104370.0,0.16658]
[1750267053099,0.58271698,104380.0,104370.0,0.16705245]
[1750267053332,0.58271698,104380.0,104370.0,0.16505245]
[1750267054058,0.58271698,104380.0,104370.0,0.00057245]
[1750267054290,0.58271698,104380.0,104370.0,0.16105245]
[1750267054291,0.58371698,104380.0,104370.0,0.16105245]
[1750267054756,0.6127023,104380.0,104370.0,0.16105245]
[1750267055196,0.6031222,104380.0,104370.0,0.35267839]
[1750267055627,0.6031222,104380.0,104370.0,0.36225968]
[1750267055871,0.6031222,104380.0,104370.0,0.46808246]
[1750267056302,0.6031222,104380.0,104370.0,0.47766339]
[1750267056723,0.42109417,104380.0,104370.0,0.55812478]
[1750267056936,0.62228212,104380.0,104370.0,0.54854413]
[1750267057156,0.02973947,104380.0,104370.0,0.55812478]
[1750267057380,0.41126841,104380.0,104370.0,0.55812478]
[1750267057657,0.42084869,104380.0,104370.0,0.54854413]
[1750267057900,0.61245627,104380.0,104370.0,0.53896339]
[1750267058128,0.5932969,104380.0,104370.0,0.53896375]
[1750267058560,0.57413688,104380.0,104370.0,0.25729421]
[1750267058785,0.57413688,104380.0,104370.0,0.1063955]
[1750267058992,0.57413688,104380.0,104370.0,0.45854144]
[1750267059458,0.60277956,104380.0,104370.0,0.16109245]
[1750267059886,0.60277956,104380.0,104370.0,0.36229968]
[1750267060328,0.41117134,104380.0,104370.0,0.44396181]
[1750267060545,0.6447593,104380.0,104370.0,0.16109245]
[1750267061426,0.6123593,104380.0,104370.0,0.16109245]
[1750267061672,0.85378591,104380.0,104370.0,0.00057245]
[1750267061891,1.24852754,104380.0,104370.0,0.00057245]
[1750267062759,0.79029376,104380.0,104370.0,0.00057245]
[1750267062996,0.695052,104380.0,104370.0,0.00057245]
[1750267063216,0.694052,104380.0,104370.0,0.00057245]
[1750267064074,0.693952,104380.0,104370.0,0.00057245]
[1750267064300,0.47380174,104380.0,104370.0,0.00057245]
[1750267064513,0.64261662,104380.0,104370.0,0.00057245]
[1750267064730,0.64561662,104380.0,104370.0,0.00057245]
[1750267066956,0.66840033,104380.0,104370.0,0.00057245]
[1750267067170,0.64561662,104380.0,104370.0,0.00057245]
[1750267067375,0.7293372,104380.0,104370.0,0.00057245]
[1750267067606,0.7293372,104380.0,104340.0,0.16062]
[1750267067607,0.20124562,104350.0,104340.0,0.16062]
[1750267067830,0.60253394,104350.0,104340.0,0.16066725]
[1750267068719,0.60253394,104350.0,104340.0,0.00014725]
[1750267068947,0.60253394,104350.0,104340.0,0.16166725]
[1750267069397,0.20128419,104330.0,104320.0,0.0333]
[1750267069614,0.57323312,104330.0,104320.0,0.0001]
[1750267071156,0.57323312,104330.0,104320.0,0.002]
[1750267071157,1.07352381,104330.0,104320.0,0.002]
[1750267071403,1.15569579,104330.0,104320.0,0.002]
[1750267071622,0.21090913,104310.0,104300.0,0.00902123]
[1750267071853,0.7077563,104310.0,104300.0,0.0001]
[1750267072919,0.70784679,104310.0,104300.0,0.0011]
[1750267073209,0.70784679,104310.0,104300.0,0.0001]
[1750267074503,0.70984679,104310.0,104300.0,0.0001]
[1750267074731,0.70984679,104310.0,104280.0,0.0319]
[1750267074732,0.21094958,104290.0,104280.0,0.01790151]
[1750267074960,1.07974568,104290.0,104280.0,0.0001]
[1750267075646,1.10785032,104290.0,104280.0,0.0001]
[1750267075872,0.76302739,104290.0,104280.0,0.0001]
[1750267076092,0.79096549,104290.0,104280.0,0.0011]
[1750267076536,0.79096549,104290.0,104280.0,0.0001]
[1750267076762,1.16291442,104290.0,104280.0,0.0001]
[1750267077007,1.1915709,104290.0,104280.0,0.0001]
[1750267077469,1.16291442,104290.0,104280.0,0.0001]
[1750267078384,1.1915709,104290.0,104280.0,0.0001]
[1750267079533,0.54691539,104290.0,104280.0,0.0001]
[1750267079748,0.93804096,104290.0,104280.0,0.0001]
[1750267079973,0.59474851,104290.0,104280.0,0.0001]
[1750267080673,0.09790134,104290.0,104280.0,0.0001]
[1750267080968,0.41922966,104290.0,104280.0,0.30393762]
[1750267081182,0.01917609,104290.0,104280.0,0.43198429]
[1750267081407,0.00958791,104290.0,104280.0,0.59278429]
[1750267081628,0.0191759,104290.0,104280.0,0.6894255]
[1750267081859,0.00958781,104290.0,104280.0,0.6894255]
[1750267082088,0.58287847,104300.0,104290.0,0.22053776]
[1750267082311,0.58287847,104300.0,104290.0,0.29462865]
[1750267082742,0.58287847,104300.0,104290.0,0.29462884]
[1750267082955,0.58287847,104300.0,104290.0,0.30421721]
[1750267083403,0.01917444,104300.0,104290.0,0.32339339]
[1750267083645,0.21099999,104310.0,104300.0,0.21092935]
[1750267083862,0.21099999,104310.0,104300.0,0.45048824]
[1750267084078,0.3912122,104310.0,104300.0,0.45048824]
[1750267084292,0.39121165,104310.0,104300.0,0.46007532]
[1750267084509,0.01926272,104310.0,104300.0,0.55631708]
[1750267084734,0.41038471,104310.0,104300.0,0.55631705]
[1750267084973,0.59253572,104310.0,104300.0,0.53714271]
[1750267085202,0.59253572,104310.0,104300.0,0.54772997]
[1750267085416,0.5829491,104310.0,104300.0,0.53814289]
[1750267085688,0.5829491,104310.0,104300.0,0.54773034]
[1750267086142,0.5829491,104310.0,104300.0,0.5573177]
[1750267086364,0.5829491,104310.0,104300.0,0.54873034]
[1750267086580,0.5829491,104310.0,104300.0,0.55731751]
[1750267087000,0.5829491,104310.0,104300.0,0.55931751]
[1750267087457,0.39121257,104310.0,104300.0,0.56890459]
[1750267087671,0.40079864,104310.0,104300.0,0.56890459]
[1750267088113,0.3816254,104310.0,104300.0,0.56890459]
[1750267088332,0.39121165,104310.0,104300.0,0.56890459]
[1750267088606,0.40079818,104310.0,104300.0,0.56890459]
[1750267088821,0.39121165,104310.0,104300.0,0.56890478]
[1750267089034,0.39121165,104310.0,104300.0,0.5593177]
[1750267089252,0.4103848,104310.0,104300.0,0.54973034]
[1750267089471,0.4103848,104310.0,104300.0,0.5593177]
[1750267089692,0.4103848,104310.0,104300.0,0.56890496]
[1750267089909,0.5829491,104310.0,104300.0,0.17812062]
[1750267090119,0.5829491,104310.0,104300.0,0.5400628]
[1750267090336,0.5829491,104310.0,104300.0,0.53047517]
[1750267090554,0.5829491,104310.0,104300.0,0.54965034]
[1750267090772,0.5829491,104310.0,104300.0,0.08187886]
[1750267090988,0.57336239,104310.0,104300.0,0.48670113]
[1750267091417,0.57336239,104310.0,104300.0,0.50587612]
[1750267091663,0.37203942,104310.0,104300.0,0.5154632]
[1750267091882,0.03843568,104310.0,104300.0,0.61170496]
[1750267092127,0.6021216,104310.0,104300.0,0.60211806]
[1750267092406,0.37530894,104310.0,104300.0,0.60211806]
[1750267092628,0.58285824,104310.0,104300.0,0.62129287]
[1750267092848,0.40070869,104310.0,104300.0,0.62129232]
[1750267093069,0.22049593,104310.0,104300.0,0.59258917]
[1750267093288,0.59244486,104310.0,104300.0,0.59258917]
[1750267093504,0.59244486,104310.0,104300.0,0.60217653]
[1750267094134,0.59244486,104310.0,104300.0,0.60219692]
[1750267094284,0.59244486,104310.0,104300.0,0.6021971]
[1750267094720,0.59244486,104310.0,104300.0,0.62137191]
[1750267095154,0.59244486,104310.0,104300.0,0.62137136]
[1750267095328,0.59244486,104310.0,104300.0,0.62137081]
[1750267095525,0.59244486,104310.0,104300.0,0.60219656]
[1750267095734,0.59244486,104310.0,104300.0,0.61178382]
[1750267096190,0.59244486,104310.0,104300.0,0.40830382]
[1750267096360,0.59244486,104310.0,104300.0,0.61178382]
[1750267096563,0.39112134,104310.0,104300.0,0.61178382]
[1750267096914,0.01917241,104310.0,104300.0,0.6213709]
[1750267097123,0.40070796,104310.0,104300.0,0.6213709]
[1750267097337,0.60203093,104310.0,104300.0,0.6213709]
[1750267097557,0.59244486,104310.0,104300.0,0.5926092]
[1750267097773,0.59244486,104310.0,104300.0,0.60219646]
[1750267098216,0.59244486,104310.0,104300.0,0.5926092]
[1750267098684,0.40070796,104310.0,104300.0,0.61183616]
[1750267099121,0.60203093,104310.0,104300.0,0.60224908]
[1750267099353,0.60203093,104310.0,104300.0,0.61183634]
[1750267099560,0.40070796,104310.0,104300.0,0.62142305]
[1750267099782,0.39112134,104310.0,104300.0,0.62142305]
[1750267100450,0.40070796,104310.0,104300.0,0.62142305]
[1750267100661,0.40070787,104310.0,104300.0,0.62142305]
[1750267100862,0.60203075,104310.0,104300.0,0.61183597]
[1750267101073,0.41029449,104310.0,104300.0,0.62142305]
[1750267101712,0.40070787,104310.0,104300.0,0.62142305]
[1750267102360,0.41029449,104310.0,104300.0,0.62142305]
[1750267102570,0.41029513,104310.0,104300.0,0.62142305]
[1750267102781,0.39112125,104310.0,104300.0,0.62142305]
[1750267103019,0.40070769,104310.0,104300.0,0.62142305]
[1750267103247,0.41029431,104310.0,104300.0,0.62142305]
[1750267103470,0.40070769,104310.0,104300.0,0.62142305]
[1750267103711,0.381535,104310.0,104300.0,0.62142305]
[1750267103787,0.22049153,104320.0,104310.0,0.22049575]
[1750267104004,0.41957798,104330.0,104320.0,0.2108891]
[1750267104221,0.06679797,104330.0,104320.0,0.39882671]
[1750267104436,0.05356865,104330.0,104320.0,0.40841195]
[1750267104650,0.43510236,104330.0,104320.0,0.39882671]
[1750267104857,0.6268026,104330.0,104320.0,0.38924128]
[1750267105092,0.42551822,104330.0,104320.0,0.40841204]
[1750267105310,0.43510309,104330.0,104320.0,0.40841204]
[1750267105520,0.62880306,104330.0,104320.0,0.37965576]
[1750267105740,0.60963368,104330.0,104320.0,0.37965576]
[1750267105966,0.60204881,104330.0,104320.0,0.06079042]
[1750267106186,0.6248581,104330.0,104320.0,0.22139042]
[1750267106622,0.6248581,104330.0,104320.0,0.41310821]
[1750267106835,0.6248581,104330.0,104320.0,0.22139032]
[1750267107055,0.6248581,104330.0,104320.0,0.20348]
[1750267107268,0.6248581,104330.0,104320.0,0.40478367]
[1750267107485,0.42951749,104330.0,104320.0,0.49864022]
[1750267107934,0.43910218,104330.0,104320.0,0.49864022]
[1750267108153,0.43910209,104330.0,104320.0,0.49864022]
[1750267108355,0.63080223,104330.0,104320.0,0.48905498]
[1750267108789,0.46194401,104330.0,104320.0,0.49864031]
[1750267108991,0.47152879,104330.0,104320.0,0.50822555]
[1750267109225,0.46194392,104330.0,104320.0,0.50822555]
[1750267109428,0.64038711,104330.0,104320.0,0.46029779]
[1750267109666,0.64407414,104330.0,104320.0,0.46988367]
[1750267109881,0.64407414,104330.0,104320.0,0.25681779]
[1750267109882,0.63448954,104330.0,104320.0,0.25681779]
[1750267110102,0.63448954,104330.0,104320.0,0.46984367]
[1750267110555,0.62490476,104330.0,104320.0,0.46025779]
[1750267110766,0.62490476,104330.0,104320.0,0.46984358]
[1750267110985,0.20130358,104320.0,104310.0,0.10562209]
[1750267111203,0.94520144,104320.0,104310.0,0.00014209]
[1750267111425,0.96805739,104320.0,104310.0,0.16070209]
[1750267112314,0.96805739,104320.0,104310.0,0.00014209]
[1750267112532,0.96805739,104320.0,104310.0,0.16070209]
[1750267112743,0.96805739,104320.0,104310.0,0.00014209]
[1750267112961,0.96805739,104320.0,104310.0,0.16070209]
[1750267112962,1.24944235,104320.0,104310.0,0.16070209]
[1750267113180,1.29426411,104320.0,104310.0,0.16070209]
[1750267113851,1.29426411,104320.0,104310.0,0.00014209]
[1750267114061,1.26567013,104320.0,104310.0,0.00014209]
[1750267114297,1.32285617,104320.0,104310.0,0.00014209]
[1750267115698,1.2656682,104320.0,104310.0,0.00014209]
[1750267116364,1.29622451,104320.0,104310.0,0.00014209]
[1750267117254,1.29822451,104320.0,104310.0,0.00014209]
[1750267117465,1.29821798,104320.0,104310.0,0.00014209]
[1750267119711,1.26009267,104320.0,104310.0,0.00014209]
[1750267120566,1.26008679,104320.0,104310.0,0.00014209]
[1750267121873,0.25670931,104320.0,104310.0,0.00014209]
[1750267122080,0.25670931,104320.0,104310.0,0.25467826]
[1750267122081,0.60010846,104320.0,104310.0,0.25467826]
[1750267122284,0.39511932,104320.0,104310.0,0.28343784]
[1750267122483,0.38553399,104320.0,104310.0,0.293024]
[1750267122684,0.004,104320.0,104310.0,0.43214576]
[1750267123567,0.40634866,104330.0,104320.0,0.22047434]
[1750267123782,0.40634857,104330.0,104320.0,0.44735434]
[1750267124400,0.39676443,104330.0,104320.0,0.44735434]
[1750267124834,0.0248155,104330.0,104320.0,0.5435961]
[1750267125067,0.37194893,104330.0,104320.0,0.5435961]
[1750267125991,0.40128832,104350.0,104340.0,0.22218104]
[1750267126212,0.05808685,104350.0,104340.0,0.44359208]
[1750267126414,0.41244044,104350.0,104340.0,0.48647208]
[1750267127036,0.39327565,104350.0,104340.0,0.48647208]
[1750267127684,0.40285814,104350.0,104340.0,0.48947208]
[1750267127894,0.39327565,104350.0,104340.0,0.48947208]
[1750267128113,0.02132672,104350.0,104340.0,0.48947208]
[1750267128314,0.39116216,104360.0,104350.0,0.21082847]
[1750267128554,0.20124562,104350.0,104340.0,0.25928104]
[1750267128748,0.5827774,104350.0,104340.0,0.46284104]
[1750267128954,0.5827774,104350.0,104340.0,0.472425]
[1750267129172,0.5827774,104350.0,104340.0,0.48100886]
[1750267129563,0.5827774,104350.0,104340.0,0.49059263]
[1750267129780,0.5827774,104350.0,104340.0,0.48100886]
[1750267129997,0.5827774,104350.0,104340.0,0.471425]
[1750267130212,0.5827774,104350.0,104340.0,0.48100877]
[1750267130435,0.5827774,104350.0,104340.0,0.48200877]
[1750267130667,0.60386382,104350.0,104340.0,0.48200877]
[1750267130898,0.41220115,104350.0,104340.0,0.48200877]
[1750267131137,0.41220115,104350.0,104340.0,0.50117585]
[1750267131138,0.42178308,104350.0,104340.0,0.50117585]
[1750267131360,0.41220023,104350.0,104340.0,0.50117585]
[1750267131574,0.42178308,104350.0,104340.0,0.50117585]
[1750267132001,0.41220023,104350.0,104340.0,0.50117585]
[1750267132267,0.62302907,104350.0,104340.0,0.49159245]
[1750267132546,0.6326122,104350.0,104340.0,0.50117604]
[1750267132765,0.4313664,104350.0,104340.0,0.51075954]
[1750267132979,0.41220023,104350.0,104340.0,0.51075944]
[1750267133211,0.41220023,104350.0,104340.0,0.51063944]
[1750267133634,0.42178299,104350.0,104340.0,0.51063944]
[1750267134278,0.62302934,104350.0,104340.0,0.50105604]
[1750267134489,0.62302934,104350.0,104340.0,0.51063954]
[1750267135374,0.62302934,104350.0,104340.0,0.51063898]
[1750267136016,0.62302934,104350.0,104340.0,0.50105558]
[1750267136470,0.62302934,104350.0,104340.0,0.49147208]
[1750267136684,0.62302934,104350.0,104340.0,0.50105548]
[1750267136685,0.42178354,104350.0,104340.0,0.50105548]
[1750267136909,0.03066872,104350.0,104340.0,0.59729724]
[1750267137129,0.05941673,104350.0,104340.0,0.59729724]
[1750267137345,0.04983378,104350.0,104340.0,0.59729724]
[1750267137993,0.05941673,104350.0,104340.0,0.59729724]
[1750267138216,0.04983378,104350.0,104340.0,0.59729724]
[1750267138425,0.05941654,104350.0,104340.0,0.59729724]
[1750267138633,0.04983378,104350.0,104340.0,0.59729724]
[1750267139300,0.62302888,104350.0,104340.0,0.57813062]
[1750267139730,0.5827774,104350.0,104340.0,0.57813062]
[1750267139971,0.5827774,104350.0,104340.0,0.37469062]
[1750267140206,0.59236007,104350.0,104340.0,0.57809062]
[1750267140641,0.22041114,104350.0,104340.0,0.5876743]
[1750267140855,0.57319464,104350.0,104340.0,0.0676]
[1750267141077,0.57319464,104350.0,104340.0,0.003]
[1750267141286,0.57319464,104350.0,104340.0,0.16352]
[1750267142373,0.59534513,104350.0,104340.0,0.16252]
[1750267142875,0.2233962,104350.0,104340.0,0.16252]
[1750267143095,0.20126509,104340.0,104330.0,0.0645]
[1750267143323,0.20126509,104340.0,104330.0,0.47891115]
[1750267143324,0.57321402,104340.0,104330.0,0.47891115]
[1750267143561,0.57321402,104340.0,104330.0,0.06464209]
[1750267143778,0.57321402,104340.0,104330.0,0.43603134]
[1750267144014,0.57321402,104340.0,104330.0,0.42644647]
[1750267144233,0.57321402,104340.0,104330.0,0.45620008]
[1750267144234,0.39111574,104340.0,104330.0,0.45620008]
[1750267144674,0.39111574,104340.0,104330.0,0.45720008]
[1750267144882,0.40368227,104350.0,104340.0,0.21084849]
[1750267145129,0.22043207,104340.0,104330.0,0.21301097]
[1750267145332,0.41028364,104340.0,104330.0,0.42603538]
[1750267145541,0.40069978,104340.0,104330.0,0.4982197]
[1750267145777,0.59238138,104340.0,104330.0,0.46946637]
[1750267145997,0.59238175,104340.0,104330.0,0.2564415]
[1750267146222,0.58279798,104340.0,104330.0,0.39318647]
[1750267146469,0.58279798,104340.0,104330.0,0.43577134]
[1750267146687,0.58279798,104340.0,104330.0,0.45494081]
[1750267146904,0.58279798,104340.0,104330.0,0.43577134]
[1750267147113,0.58279798,104340.0,104330.0,0.4176015]
[1750267147337,0.57321402,104340.0,104330.0,0.42818647]
[1750267147552,0.57321402,104340.0,104330.0,0.43777134]
[1750267147770,0.57321402,104340.0,104330.0,0.42818647]
[1750267148016,0.57321402,104340.0,104330.0,0.42822647]
[1750267148231,0.57321402,104340.0,104330.0,0.43781134]
[1750267148908,0.58279779,104340.0,104330.0,0.44739603]
[1750267149349,0.58279779,104340.0,104330.0,0.43781134]
[1750267149549,0.57321402,104340.0,104330.0,0.4186415]
[1750267149771,0.201265,104340.0,104330.0,0.42822647]
[1750267149978,0.00958368,104340.0,104330.0,0.45698008]
[1750267150199,0.01916708,104340.0,104330.0,0.45698008]
[1750267150456,0.02875085,104340.0,104330.0,0.45698008]
[1750267150656,0.02875085,104340.0,104330.0,0.44739576]
[1750267150897,0.60196487,104340.0,104330.0,0.44739576]
[1750267151133,0.59238147,104340.0,104330.0,0.44739576]
[1750267151561,0.59238147,104340.0,104330.0,0.43781116]
[1750267151803,0.57321402,104340.0,104330.0,0.27721125]
[1750267152040,0.57321402,104340.0,104330.0,0.43809125]
[1750267152470,0.56362997,104340.0,104330.0,0.42850647]
[1750267152891,0.56362997,104340.0,104330.0,0.43809134]
[1750267152892,0.78786676,104340.0,104330.0,0.43809134]
[1750267153121,0.78786676,104340.0,104330.0,0.44767603]
[1750267153343,0.78786676,104340.0,104330.0,0.00214209]
[1750267153793,0.88401598,104340.0,104330.0,0.00214209]
[1750267154012,1.03571844,104340.0,104330.0,0.00214209]
[1750267154238,1.03571844,104340.0,104330.0,0.16290209]
[1750267154483,0.81072746,104340.0,104330.0,0.16290209]
[1750267154713,0.81072746,104340.0,104330.0,0.22530209]
[1750267155167,0.78786676,104340.0,104330.0,0.22430209]
[1750267155650,0.81072251,104340.0,104330.0,0.22330209]
[1750267155871,0.81172251,104340.0,104330.0,0.22330209]
[1750267156962,0.58816736,104340.0,104330.0,0.44375557]
[1750267157171,0.39279839,104340.0,104330.0,0.45333989]
[1750267157393,0.02975076,104340.0,104330.0,0.45333989]
[1750267157609,0.0201669,104340.0,104330.0,0.45333989]
[1750267157839,0.02975067,104340.0,104330.0,0.45333989]
[1750267158053,0.61323019,104340.0,104330.0,0.44375557]
[1750267158525,0.61323019,104340.0,104330.0,0.44475557]
[1750267158760,0.4109651,104340.0,104330.0,0.45433989]
[1750267158991,0.40138115,104340.0,104330.0,0.45533989]
[1750267159430,0.59306219,104340.0,104330.0,0.43617116]
[1750267159645,0.42054888,104340.0,104330.0,0.45534008]
[1750267160091,0.59306302,104340.0,104330.0,0.43617116]
[1750267160302,0.58347934,104340.0,104330.0,0.06454209]
[1750267160550,0.69939591,104340.0,104330.0,0.16278209]
[1750267160753,0.67253861,104340.0,104330.0,0.16278209]
[1750267160973,0.58716381,104340.0,104330.0,0.16278209]
[1750267161187,0.56431161,104340.0,104330.0,0.16278209]
[1750267161414,0.56431161,104340.0,104330.0,0.16178209]
[1750267161618,0.56431161,104340.0,104330.0,0.00114209]
[1750267161833,0.58716036,104340.0,104330.0,0.16178209]
[1750267162274,0.58716036,104340.0,104330.0,0.16078209]
[1750267162704,0.58816036,104340.0,104330.0,0.16078209]
[1750267163175,0.58816036,104340.0,104330.0,0.16074209]
[1750267164460,0.58815982,104340.0,104330.0,0.16074209]
[1750267164889,0.56531161,104340.0,104330.0,0.16074209]
[1750267166181,0.56531161,104340.0,104330.0,0.16066209]
[1750267166618,0.58447943,104340.0,104330.0,0.43433116]
[1750267166842,0.60364707,104340.0,104330.0,0.45350017]
[1750267167294,0.60364707,104340.0,104330.0,0.55932625]
[1750267167295,0.01058331,104340.0,104330.0,0.55932625]
[1750267167514,0.02016671,104340.0,104330.0,0.55932625]
[1750267168165,0.02875039,104340.0,104330.0,0.55932625]
[1750267168388,0.01916671,104340.0,104330.0,0.56032625]
[1750267168623,0.39179728,104340.0,104330.0,0.56032625]
[1750267168837,0.38221388,104340.0,104330.0,0.56032625]
[1750267169054,0.38221388,104340.0,104330.0,0.56132625]
[1750267169968,0.39179738,104340.0,104330.0,0.56132625]
[1750267170597,0.21914902,104340.0,104330.0,0.56132625]
[1750267170882,0.20956552,104340.0,104330.0,0.56132625]
[1750267171376,0.21914883,104340.0,104330.0,0.56132625]
[1750267171601,0.01916681,104340.0,104330.0,0.56132625]
[1750267171833,0.60264624,104340.0,104330.0,0.36246823]
[1750267172075,0.58347943,104340.0,104330.0,0.00214209]
[1750267172297,0.58347943,104340.0,104330.0,0.16266209]
[1750267172976,0.58347943,104340.0,104330.0,0.00214209]
[1750267173197,0.58347943,104340.0,104330.0,0.16266209]
[1750267173646,0.58347943,104340.0,104330.0,0.00214209]
[1750267173861,0.58347943,104340.0,104330.0,0.16274209]
[1750267174724,0.58347943,104340.0,104330.0,0.16074209]
[1750267174946,0.58447943,104340.0,104330.0,0.16074209]
[1750267177328,0.58447943,104340.0,104330.0,0.00014209]
[1750267177575,0.58447943,104340.0,104330.0,0.16066209]
[1750267178484,0.58447943,104340.0,104330.0,0.06364209]
[1750267178729,0.57489566,104340.0,104330.0,0.22416209]
[1750267179629,0.57489566,104340.0,104330.0,0.19396209]
[1750267180330,0.57489566,104340.0,104330.0,0.22696209]
[1750267180782,0.59774558,104340.0,104330.0,0.4186615]
[1750267181007,0.001,104340.0,104330.0,0.61989472]
[1750267181265,0.29911401,104340.0,104330.0,0.61989472]
[1750267181961,0.318281,104340.0,104330.0,0.54365705]
[1750267182192,0.32786477,104340.0,104330.0,0.54365705]
[1750267182433,0.318281,104340.0,104330.0,0.54365705]
[1750267182912,0.39271871,104340.0,104330.0,0.54365705]
[1750267183135,0.37355172,104340.0,104330.0,0.54365705]
[1750267183359,0.38313503,104340.0,104330.0,0.54365705]
[1750267183579,0.37355172,104340.0,104330.0,0.54365705]
[1750267183800,0.38313494,104340.0,104330.0,0.54365705]
[1750267184500,0.01058322,104340.0,104330.0,0.54365705]
[1750267185274,0.001,104340.0,104330.0,0.58653705]
[1750267185929,0.01058331,104340.0,104330.0,0.58653705]
[1750267186391,0.001,104340.0,104330.0,0.58653705]
[1750267188689,0.001,104340.0,104330.0,0.97362962]
[1750267188966,5e-05,104360.0,104350.0,0.22041096]
[1750267189189,5e-05,104360.0,104350.0,0.55471357]
[1750267190972,5e-05,104360.0,104350.0,0.55571357]
[1750267191435,5e-05,104360.0,104350.0,0.92826529]
[1750267191663,5e-05,104360.0,104350.0,0.92926529]
[1750267191887,5e-05,104370.0,104360.0,0.22038983]
[1750267192133,5e-05,104370.0,104360.0,0.42161159]
[1750267192583,5e-05,104370.0,104360.0,0.79416331]
[1750267193318,5e-05,104370.0,104360.0,0.42461159]
[1750267193548,5e-05,104370.0,104360.0,0.79716331]
[1750267193769,5e-05,104370.0,104360.0,0.79616331]
[1750267193990,5e-05,104370.0,104360.0,0.80216331]
[1750267194874,5e-05,104370.0,104360.0,0.80016331]
[1750267195334,5e-05,104370.0,104360.0,0.80916331]
[1750267195576,5e-05,104380.0,104370.0,0.23490957]
[1750267195794,5e-05,104380.0,104370.0,0.86600305]
[1750267196019,5e-05,104390.0,104380.0,0.34718845]
[1750267196240,5e-05,104390.0,104380.0,0.81598193]
[1750267196698,5e-05,104400.0,104390.0,0.22032649]
[1750267196933,5e-05,104400.0,104390.0,1.18433997]
[1750267196934,0.0001861,104400.0,104390.0,1.18433997]
[1750267197570,0.0001861,104400.0,104390.0,0.81178825]
[1750267197802,0.0001861,104400.0,104390.0,0.8262891]
[1750267198258,0.0001861,104400.0,104390.0,0.8282891]
[1750267199545,0.0001861,104400.0,104390.0,0.85667313]
[1750267200186,0.0001861,104400.0,104390.0,0.85867313]
[1750267201315,0.0001861,104400.0,104390.0,0.42519313]
[1750267201541,0.37273782,104400.0,104390.0,0.39450825]
[1750267201786,0.39189371,104400.0,104390.0,0.36340862]
[1750267202009,0.40147197,104400.0,104390.0,0.52384871]
[1750267202252,0.40147197,104400.0,104390.0,0.32056871]
[1750267202484,0.59304349,104400.0,104390.0,0.35398923]
[1750267202703,0.58346541,104400.0,104390.0,0.35398923]
[1750267203160,0.58346541,104400.0,104390.0,0.36356869]
[1750267203409,0.57388715,104400.0,104390.0,0.20316869]
[1750267203629,0.20133543,104400.0,104390.0,0.36160869]
[1750267203856,0.57388715,104400.0,104390.0,0.35202923]
[1750267204083,0.5643087,104400.0,104390.0,0.35202923]
[1750267204357,0.5643087,104400.0,104390.0,0.37118805]
[1750267204806,0.5643087,104400.0,104390.0,0.35202923]
[1750267205045,0.5643087,104400.0,104390.0,0.37118805]
[1750267205255,0.5643087,104400.0,104390.0,0.16044]
[1750267205480,0.19158923,104390.0,104370.0,0.48538594]
[1750267205703,0.39171201,104380.0,104370.0,0.59919177]
[1750267205930,0.39171183,104380.0,104370.0,0.75963177]
[1750267206151,0.4108723,104380.0,104370.0,0.75963186]